bitfinex-derivatives/quotes_SOLF0:USTF0_20240908
["timestamp","ask_amount","ask_price","bid_price","bid_amount"]
[1725763471994,13.8974,128.0,127.97,3.9073]
[1725763472603,13.8974,128.0,127.96,3.9074]
[1725763473502,3.9067,127.99,127.96,3.9074]
[1725763480714,13.8975,128.0,127.96,3.9074]
[1725763484906,7.2,127.99,127.95,3.9078]
[1725763486011,2.791,128.0,127.94,3.908]
[1725763486012,11.1074,127.97,127.94,3.908]
[1725763489313,7.2,127.97,127.94,3.908]
[1725763491124,3.9071,127.98,127.95,3.9079]
[1725763501128,3.9071,127.98,127.95,3.87684638]
[1725763502629,3.9069,127.99,127.96,3.9075]
[1725763502834,43.4111083,128.08,127.96,7.2]
[1725763503129,11.106,128.02,127.98,3.9068]
[1725763503327,3.86148202,128.01,127.98,3.9068]
[1725763503533,11.06148202,128.01,127.98,3.9068]
[1725763503924,14.96778202,128.01,127.97,3.9072]
[1725763504928,14.96778202,128.01,127.92,118.67794983]
[1725763504929,3.86148202,128.01,127.98,3.9067]
[1725763505131,11.106,128.02,127.98,3.9067]
[1725763505333,7.2,128.01,127.98,3.9067]
[1725763505532,11.20282287,128.01,127.98,3.9067]
[1725763506543,15.10902287,128.01,127.98,3.9067]
[1725763509644,4.00282287,128.01,127.95,7.2]
[1725763509847,4.00282287,128.01,127.96,1.3842]
[1725763511346,4.00282287,128.01,127.98,3.9068]
[1725763513447,11.20282287,128.01,127.98,3.9068]
[1725763517949,4.00282287,128.01,127.98,3.9068]
[1725763519460,7.90892287,128.01,127.98,3.9068]
[1725763522152,3.9065,128.0,127.97,3.9071]
[1725763522355,7.2,127.99,127.92,125.87794983]
[1725763522751,7.2,127.99,127.96,3.9076]
[1725763522752,11.1069,127.99,127.96,3.9076]
[1725763522946,7.2,127.99,127.96,3.9076]
[1725763524549,13.8473,128.0,127.96,3.9076]
[1725763530658,3.9069,127.99,127.96,3.9076]
[1725763531858,6.6471,128.0,127.97,3.9073]
[1725763532054,1.3606,128.03,127.93,1.328]
[1725763532055,7.2,128.03,127.96,7.2]
[1725763532259,7.78438049,128.02,127.98,3.9069]
[1725763535061,7.78438049,128.02,127.99,3.9067]
[1725763547073,2.6835,128.05,127.96,7.2]
[1725763547264,13.77495045,128.05,127.99,7.2]
[1725763547461,13.77495045,128.05,127.99,11.05003125]
[1725763548366,3.9053,128.04,128.01,3.9059]
[1725763549974,11.1053,128.04,128.01,3.9059]
[1725763550977,11.1053,128.04,127.99,3.85003125]
[1725763550978,3.9055,128.03,128.0,3.9062]
[1725763551171,7.2,128.01,127.97,1.3908]
[1725763551378,7.2,128.01,127.95,7.2]
[1725763551874,7.2,128.01,127.96,4.00258806]
[1725763552274,11.1063,128.01,127.98,3.9069]
[1725763552577,7.2,128.02,127.96,11.20258806]
[1725763552870,7.2,128.02,127.96,7.2]
[1725763553376,7.2,128.02,127.97,3.88927777]
[1725763553876,11.1059,128.02,127.99,3.9066]
[1725763555570,3.9061,128.01,127.98,3.9069]
[1725763556469,11.1059,128.02,127.98,3.9069]
[1725763558574,11.1059,128.02,127.99,3.9066]
[1725763562778,3.9059,128.02,127.99,3.9066]
[1725763564269,22.61515525,128.05,127.96,11.02188887]
[1725763564468,6.59183796,128.05,127.99,7.2]
[1725763564670,2.6835,128.05,127.99,7.2]
[1725763564867,2.6835,128.05,128.01,3.9059]
[1725763565967,7.2,128.03,128.0,3.9063]
[1725763566675,7.2,128.02,127.99,3.9066]
[1725763567778,11.1058,128.02,127.99,3.9066]
[1725763570878,3.9062,128.01,127.97,3.9072]
[1725763571077,12.4358,128.01,127.97,3.9072]
[1725763571276,7.2,127.99,127.95,3.81730092]
[1725763571477,7.2,127.99,127.93,8.5138]
[1725763571982,7.2,127.99,127.93,12.50340693]
[1725763572484,11.1067,127.99,127.96,3.9075]
[1725763574079,11.1067,127.99,127.95,3.9078]
[1725763579586,3.9067,127.99,127.96,3.9076]
[1725763584888,3.907,127.98,127.95,3.9077]
[1725763585790,11.1074,127.97,127.94,3.908]
[1725763586098,12.4292,127.97,127.94,3.908]
[1725763586784,1.3218,127.97,127.88,1.3722]
[1725763586992,1.3218,127.97,127.88,8.5722]
[1725763586993,7.2,127.94,127.88,8.5722]
[1725763587399,11.1083,127.94,127.91,3.909]
[1725763587893,7.2,127.94,127.91,3.909]
[1725763588397,1.3218,127.97,127.91,7.2]
[1725763589394,3.9077,127.96,127.93,3.9085]
[1725763591901,1.3218,127.97,127.94,3.9082]
[1725763591902,5.2291,127.97,127.94,3.9082]
[1725763599204,5.2673,128.0,127.97,3.9072]
[1725763599406,1.3607,128.0,127.96,3.85974016]
[1725763599697,1.3607,128.0,127.95,8.6112]
[1725763599903,1.328,128.02,127.97,7.2]
[1725763600401,1.4113,128.04,127.98,7.2]
[1725763600613,1.4113,128.04,128.01,3.9058]
[1725763601704,1.4113,128.04,128.02,3.9058]
[1725763602203,1.4113,128.04,127.99,7.2]
[1725763602712,1.4113,128.04,128.02,3.9056]
[1725763603700,155.73502336,128.06,128.01,7.2]
[1725763603896,1.3217,128.11,128.02,7.2]
[1725763604203,7.2,128.1,128.04,7.2]
[1725763604603,7.2,128.1,128.06,3.9043]
[1725763605301,10.44587255,128.11,128.07,3.9042]
[1725763605509,17.64587255,128.11,128.04,7.2]
[1725763605904,17.64587255,128.11,128.06,3.9044]
[1725763607309,3.9034,128.1,128.06,3.9044]
[1725763607909,7.2,128.08,128.05,3.9048]
[1725763608502,3.9037,128.09,128.05,3.9048]
[1725763608710,11.1037,128.09,128.05,3.9048]
[1725763609515,11.1046,128.06,127.95,5.41167818]
[1725763609708,11.1046,128.06,127.99,7.2]
[1725763610612,11.1046,128.06,128.02,3.9055]
[1725763611407,11.1046,128.06,127.95,5.41167818]
[1725763611408,3.9049,128.05,128.01,3.906]
[1725763611807,6.5247,128.05,128.01,3.906]
[1725763612808,2.6198,128.05,128.02,3.9057]
[1725763616215,6.5247,128.05,128.02,3.9057]
[1725763616912,3.9059,128.02,127.98,3.9069]
[1725763617114,3.9059,128.02,127.95,5.41167818]
[1725763617115,7.2,128.04,127.96,7.2]
[1725763617307,11.14844167,128.04,127.96,7.2]
[1725763618115,3.9056,128.03,127.99,3.9065]
[1725763618304,11.14844167,128.04,127.99,3.9065]
[1725763620212,3.9056,128.03,127.99,3.9065]
[1725763623713,3.9053,128.04,128.0,3.9064]
[1725763623913,3.9053,128.04,128.0,7.2]
[1725763624918,7.7797335,128.04,128.0,3.9063]
[1725763625119,3.9053,128.04,128.0,3.9063]
[1725763628418,6.5248,128.05,128.01,3.906]
[1725763630620,3.9053,128.04,128.01,3.906]
[1725763631513,6.5248,128.05,128.01,3.906]
[1725763636827,6.5248,128.05,128.02,3.9058]
[1725763640833,3.9044,128.07,128.04,3.9052]
[1725763647223,1.3892,128.09,128.02,11.01063022]
[1725763647224,7.2,128.09,128.02,11.01063022]
[1725763648125,11.1039,128.09,128.05,3.9047]
[1725763649329,3.9039,128.09,128.06,3.9046]
[1725763649648,6.5003,128.1,128.05,7.2]
[1725763650525,6.5003,128.1,128.07,3.9041]
[1725763650723,13.7003,128.1,128.07,3.9041]
[1725763651440,13.7003,128.1,128.06,3.9044]
[1725763651630,12.419,128.1,128.06,3.9044]
[1725763651938,13.6925,128.1,128.06,3.9044]
[1725763652239,3.9037,128.09,128.06,3.9044]
[1725763666452,3.9037,128.09,128.07,3.9042]
[1725763667342,6.4926,128.1,128.07,3.9042]
[1725763669849,3.98493211,128.09,128.07,3.9042]
[1725763678261,7.88863211,128.09,128.04,3.83572176]
[1725763678460,15.08863211,128.09,128.03,8.608]
[1725763678661,11.18493211,128.09,128.03,8.608]
[1725763678966,15.08883211,128.09,128.04,3.82557412]
[1725763679559,15.08883211,128.09,128.03,8.608]
[1725763679560,15.08883211,128.09,128.06,3.9045]
[1725763686770,3.904,128.08,128.05,3.9047]
[1725763688170,11.18493211,128.09,128.06,3.9046]
[1725763688171,7.88873211,128.09,128.06,3.9046]
[1725763688371,7.88873211,128.09,128.03,5.33160568]
[1725763688372,3.98493211,128.09,128.05,7.2]
[1725763689279,3.98493211,128.09,128.06,3.9043]
[1725763689674,3.98493211,128.09,128.05,7.2]
[1725763691179,3.98493211,128.09,128.06,3.9044]
[1725763693482,7.88863211,128.09,128.06,3.9044]
[1725763702680,7.2,128.08,128.03,1.408]
[1725763702889,7.2,128.08,128.01,11.03533822]
[1725763703787,7.2,128.07,127.95,1.3967]
[1725763703989,7.2,128.07,128.0,7.2]
[1725763704288,6.60583041,128.06,128.0,11.07439462]
[1725763705391,3.905,128.05,128.02,3.9058]
[1725763707579,7.2,128.04,127.95,1.3967]
[1725763707780,7.2,128.04,127.97,7.2]
[1725763708190,3.906,128.02,127.98,3.9069]
[1725763709694,3.9056,128.03,127.98,7.2]
[1725763709886,6.60583041,128.06,128.0,7.2]
[1725763711287,3.9054,128.04,128.01,3.9059]
[1725763711788,2.7205,128.06,128.03,7.2]
[1725763712184,3.9044,128.07,128.03,11.1053]
[1725763712386,21.32892729,128.12,128.03,7.2]
[1725763712387,3.95968435,128.09,128.03,7.2]
[1725763712582,9.8887,128.1,128.03,7.2]
[1725763713189,3.96202828,128.09,128.03,7.2]
[1725763713389,3.9043,128.07,128.04,3.905]
[1725763714399,3.96202828,128.09,128.05,3.9048]
[1725763715098,7.86582828,128.09,128.05,3.9048]
[1725763715603,19.93152729,128.12,128.08,7.2]
[1725763715787,23.47,128.17,128.02,1.279]
[1725763715788,27.13152729,128.16,128.1,7.2]
[1725763716087,0.28703174,128.15,128.08,7.2]
[1725763716290,7.2,128.16,128.08,7.2]
[1725763716291,11.15907097,128.16,128.08,7.2]
[1725763716495,3.9024,128.13,128.08,11.1037]
[1725763716689,3.9024,128.13,128.08,7.2]
[1725763716884,11.15907097,128.16,128.08,7.2]
[1725763718391,3.9022,128.14,128.09,3.9036]
[1725763723903,3.9022,128.14,128.1,3.9033]
[1725763725998,3.9019,128.15,128.11,3.9028]
[1725763727209,3.9019,128.15,128.12,3.9027]
[1725763733505,7.86077097,128.16,128.12,3.9027]
[1725763734709,3.9018,128.15,128.12,3.9027]
[1725763744011,3.9016,128.16,128.12,3.9027]
[1725763744320,36.78652431,128.32,128.07,1.2825]
[1725763744321,7.2,128.21,128.15,7.2]
[1725763744521,3.88229577,128.2,128.15,7.2]
[1725763744722,9.9851,128.21,128.15,7.2]
[1725763745318,3.9008,128.19,128.15,11.1017]
[1725763745519,3.88112488,128.2,128.15,11.1017]
[1725763745520,3.88112488,128.2,128.15,7.2]
[1725763745830,7.2,128.19,128.07,1.2825]
[1725763746122,7.2,128.18,128.12,7.2]
[1725763746315,3.9014,128.17,128.13,3.9022]
[1725763746923,7.70719733,128.17,128.13,3.9022]
[1725763747120,3.9014,128.17,128.13,3.9022]
[1725763748124,3.9014,128.17,128.14,3.9021]
[1725763749320,3.901,128.18,128.13,7.2]
[1725763749520,3.901,128.18,128.14,7.2]
[1725763749726,3.89626032,128.2,128.14,7.2]
[1725763749922,3.89626032,128.2,128.15,3.9015]
[1725763749923,3.9008,128.19,128.15,3.9015]
[1725763751429,3.9008,128.19,128.15,11.1015]
[1725763751829,9.9851,128.21,128.14,3.9019]
[1725763751830,7.2,128.2,128.14,3.9019]
[1725763752831,3.901,128.18,128.14,3.9019]
[1725763753830,3.901,128.18,128.13,7.2]
[1725763753831,3.901,128.18,128.15,11.1018]
[1725763754733,13.85607713,128.21,128.15,11.1018]
[1725763754734,3.9008,128.19,128.15,11.1018]
[1725763755734,13.85607713,128.21,128.16,11.1013]
[1725763755735,3.9003,128.2,128.16,11.1013]
[1725763757026,6.6852,128.21,128.18,7.2]
[1725763757233,5.273,128.21,128.18,7.2]
[1725763757633,9.20767891,128.21,128.18,7.2]
[1725763758132,3.9005,128.2,128.07,9.0909]
[1725763758332,5.30757891,128.21,128.14,7.2]
[1725763758333,12.50757891,128.21,128.14,7.2]
[1725763758538,12.50757891,128.21,128.14,11.02501369]
[1725763758835,3.9005,128.2,128.16,3.9013]
[1725763761834,3.9005,128.2,128.17,11.1012]
[1725763762140,5.273,128.21,128.17,11.1012]
[1725763762541,9.12884484,128.21,128.17,11.1012]
[1725763762934,5.273,128.21,128.17,11.1012]
[1725763764047,5.273,128.21,128.18,3.9009]
[1725763770737,5.273,128.21,128.17,11.1011]
[1725763770938,7.2,128.19,128.07,7.8084]
[1725763771243,1.3768,128.18,128.12,7.2]
[1725763771838,5.2779,128.18,128.14,3.9019]
[1725763774135,1.3768,128.18,128.15,3.9016]
[1725763777241,5.2778,128.18,128.15,3.9016]
[1725763777544,5.2778,128.18,128.13,7.2]
[1725763777545,5.2778,128.18,128.14,3.902]
[1725763791047,5.2778,128.18,128.13,7.2]
[1725763791048,5.2778,128.18,128.15,3.9018]
[1725763795150,1.3768,128.18,128.15,3.9018]
[1725763795346,1.3768,128.18,128.16,3.9014]
[1725763800759,3.9004,128.2,128.17,3.9011]
[1725763802060,5.2729,128.21,128.18,3.9009]
[1725763807365,1.3729,128.21,128.18,3.9009]
[1725763808665,8.5729,128.21,128.17,3.9012]
[1725763810367,3.9004,128.2,128.17,3.9012]
[1725763818371,5.273,128.21,128.16,7.2]
[1725763819259,5.273,128.21,128.18,3.9008]
[1725763825776,5.3041,128.23,128.19,7.2]
[1725763825966,3.97877156,128.24,128.19,7.2]
[1725763826972,7.87797156,128.24,128.2,3.9001]
[1725763827575,5.2352,128.25,128.21,3.9]
[1725763830471,12.5313464,128.26,128.22,7.2]
[1725763830472,1.3955,128.26,128.22,7.2]
[1725763830672,1.3955,128.26,128.19,1.3975]
[1725763830673,1.3955,128.26,128.21,8.38]
[1725763830880,5.2942,128.26,128.22,3.8995]
[1725763832470,5.2942,128.26,128.23,3.8993]
[1725763833376,3.8988,128.25,128.2,145.29548875]
[1725763833569,3.8988,128.25,128.2,153.67548875]
[1725763833570,8.38,128.25,128.2,153.67548875]
[1725763833775,8.38,128.25,128.2,145.29548875]
[1725763834475,3.8993,128.24,128.2,149.19558875]
[1725763836968,3.8993,128.24,128.21,3.9]
[1725763837279,3.8988,128.25,128.21,12.28]
[1725763837676,3.8988,128.25,128.22,3.8997]
[1725763841278,3.8988,128.25,128.21,12.2799]
[1725763847685,9.7755,128.26,128.2,149.19568875]
[1725763847893,8.38,128.25,128.2,145.29548875]
[1725763848080,8.38,128.25,128.18,8.38]
[1725763848081,8.38,128.21,128.12,1.3813]
[1725763848288,3.9008,128.19,128.14,8.38]
[1725763849293,3.9008,128.19,128.16,3.9015]
[1725763851196,3.9004,128.2,128.16,3.9015]
[1725763851693,3.9004,128.2,128.15,8.38]
[1725763851694,3.9004,128.2,128.17,3.9012]
[1725763855097,13.60369668,128.23,128.18,3.9008]
[1725763855299,9.6577,128.23,128.18,3.9008]
[1725763855798,13.49598279,128.23,128.18,3.9008]
[1725763856001,3.8998,128.22,128.18,3.9008]
[1725763860202,3.8998,128.22,128.19,3.9006]
[1725763863705,17.39558279,128.23,128.19,3.9006]
[1725763864702,3.8997,128.22,128.19,3.9006]
[1725763880308,1.2777,128.23,128.19,8.38]
[1725763880503,1.3955,128.26,128.19,8.38]
[1725763880807,3.8991,128.25,128.19,8.38]
[1725763881010,1.3955,128.26,128.13,3.88793507]
[1725763881011,1.3955,128.26,128.21,8.38]
[1725763881214,5.27844966,128.26,128.21,8.38]
[1725763881405,1.3955,128.26,128.21,8.38]
[1725763881816,5.2942,128.26,128.21,8.38]
[1725763882015,9.27274077,128.26,128.21,9.6575]
[1725763883013,1.3955,128.26,128.22,8.38]
[1725763883214,3.8983,128.27,128.22,8.38]
[1725763883407,7.88152278,128.27,128.22,8.38]
[1725763884311,7.88152278,128.27,128.23,3.8992]
[1725763885204,1.3415,128.31,128.25,8.38]
[1725763885403,2.6251,128.31,128.25,8.38]
[1725763885609,2.6251,128.31,128.24,8.38]
[1725763885812,3.8978,128.29,128.25,3.8987]
[1725763893914,3.8978,128.29,128.26,3.8985]
[1725763909634,3.8978,128.29,128.25,3.8987]
[1725763915340,8.38,128.32,128.22,163.35640169]
[1725763915531,8.38,128.32,128.26,8.38]
[1725763916128,12.19297769,128.32,128.26,8.38]
[1725763916534,3.8974,128.3,128.26,12.2783]
[1725763918240,3.8974,128.3,128.26,3.8983]
[1725763920939,7.75201352,128.3,128.26,3.8983]
[1725763923038,3.8979,128.28,128.22,163.35640169]
[1725763923241,8.38,128.28,128.22,171.73640169]
[1725763923849,8.38,128.28,128.22,163.35640169]
[1725763924245,8.38,128.24,128.12,150.20919741]
[1725763924450,7.75663829,128.23,128.19,3.9004]
[1725763929445,3.8988,128.25,128.21,12.2799]
[1725763929651,12.19788389,128.28,128.21,8.38]
[1725763929853,12.19788389,128.28,128.22,8.38]
[1725763930454,3.8987,128.26,128.22,12.2797]
[1725763937871,3.8987,128.26,128.23,3.8994]
[1725763940166,3.8983,128.27,128.24,3.8991]
[1725763940664,3.8985,128.26,128.23,3.8992]
[1725763941069,12.19788389,128.28,128.23,3.8992]
[1725763941276,3.8983,128.27,128.23,3.8992]
[1725763947279,3.8985,128.26,128.22,3.8995]
[1725763948172,3.8988,128.25,128.22,3.8995]
[1725763958981,3.8985,128.26,128.23,3.8993]
[1725763962277,8.38,128.25,128.2,1.3604]
[1725763962579,8.38,128.25,128.12,150.20919741]
[1725763962580,8.38,128.21,128.14,9.727]
[1725763962772,3.9004,128.2,128.16,3.9013]
[1725763962976,12.2804,128.2,128.16,3.9013]
[1725763963177,13.6902,128.2,128.16,3.9013]
[1725763969084,5.3102,128.2,128.17,3.9011]
[1725763969281,1.4098,128.2,128.15,8.38]
[1725763969884,5.3103,128.2,128.16,3.9012]
[1725763975487,5.3103,128.2,128.15,8.38]
[1725763975488,1.4098,128.2,128.15,8.38]
[1725763976386,1.4098,128.2,128.18,3.9009]
[1725763977498,3.9003,128.21,128.18,3.9009]
[1725763989010,3.9003,128.2,128.17,3.9011]
[1725763990203,12.2806,128.19,128.16,3.9013]
[1725763992114,8.38,128.19,128.16,3.9013]
[1725763994409,3.9004,128.2,128.17,3.9011]
[1725764007614,3.91720142,128.22,128.15,8.38]
[1725764008021,7.81700142,128.22,128.19,3.9004]
[1725764009020,13.5974,128.23,128.2,3.9003]
[1725764011530,8.38,128.22,128.14,1.347]
[1725764011723,8.38,128.22,128.14,9.727]
[1725764012130,3.9,128.21,128.18,3.9007]
[1725764012517,12.28,128.21,128.18,3.9007]
[1725764013731,3.9003,128.2,128.17,3.9011]
[1725764013927,8.38,128.19,128.14,1.347]
[1725764014128,9.7678,128.19,128.14,1.347]
[1725764014625,13.6686,128.19,128.16,3.9015]
[1725764018536,8.38,128.17,128.11,167.07019271]
[1725764018734,8.38,128.16,128.11,170.90418256]
[1725764019242,8.38,128.16,128.11,167.07019271]
[1725764020246,3.902,128.15,128.11,167.07019271]
[1725764021040,3.902,128.15,128.12,3.9027]
[1725764021236,12.2817,128.16,128.11,167.07019271]
[1725764021437,9.7618,128.18,128.13,3.9022]
[1725764022532,3.9014,128.17,128.13,3.9022]
[1725764027235,3.9015,128.16,128.13,3.9022]
[1725764029243,12.2815,128.16,128.12,3.9026]
[1725764035744,3.9015,128.16,128.13,3.9023]
[1725764036641,1.3818,128.18,128.12,8.38]
[1725764036838,1.3818,128.18,128.12,9.75]
[1725764037247,1.3818,128.18,128.15,3.9017]
[1725764041944,13.6628,128.18,128.14,3.902]
[1725764050851,17.53299981,128.18,128.14,3.902]
[1725764055255,1.3878,128.19,128.14,8.38]
[1725764055859,1.3878,128.19,128.16,3.9013]
[1725764056561,12.24902564,128.21,128.13,3.90064002]
[1725764056562,8.38,128.21,128.15,8.38]
[1725764056860,13.65675091,128.23,128.15,8.38]
[1725764057063,9.6761,128.23,128.15,12.21233761]
[1725764057259,9.6761,128.23,128.17,8.38]
[1725764057461,13.53692937,128.23,128.17,8.38]
[1725764058062,1.2961,128.23,128.17,8.38]
[1725764058369,1.2961,128.23,128.18,12.22404655]
[1725764059567,1.3562,128.24,128.21,3.8999]
[1725764060664,3.8987,128.26,128.19,8.38]
[1725764060870,8.38,128.27,128.19,9.6848]
[1725764062367,3.8985,128.26,128.23,3.8993]
[1725764067576,12.2783,128.27,128.23,3.8993]
[1725764068869,3.8985,128.26,128.23,3.8993]
[1725764069072,8.38,128.26,128.22,3.8995]
[1725764070265,3.8988,128.25,128.22,3.8995]
[1725764071868,12.2793,128.24,128.19,1.3048]
[1725764072873,12.2793,128.24,128.21,3.8998]
[1725764080786,9.7032,128.28,128.2,8.38]
[1725764081177,3.8982,128.27,128.2,8.38]
[1725764081880,3.8982,128.27,128.23,3.8991]
[1725764082090,8.38,128.26,128.19,1.3387]
[1725764082276,8.38,128.26,128.19,9.7187]
[1725764082683,12.2788,128.26,128.22,3.8995]
[1725764083092,3.8989,128.25,128.22,3.8995]
[1725764084288,8.38,128.26,128.19,13.66011508]
[1725764085391,3.8989,128.25,128.22,3.8997]
[1725764085578,8.38,128.26,128.2,8.38]
[1725764085780,9.7032,128.28,128.2,8.38]
[1725764086389,3.8985,128.26,128.23,3.8992]
[1725764093199,9.7032,128.28,128.21,3.98003756]
[1725764093391,3.8984,128.27,128.22,8.38]
[1725764094295,5.2212,128.28,128.25,3.8988]
[1725764095192,3.8982,128.27,128.24,3.8989]
[1725764101297,3.8972,128.31,128.22,8.38]
[1725764101498,12.24622464,128.31,128.24,8.38]
[1725764102303,3.8974,128.3,128.24,8.38]
[1725764103801,3.8974,128.3,128.26,3.8982]
[1725764106706,12.24622464,128.31,128.25,3.8987]
[1725764106707,8.38,128.29,128.25,3.8987]
[1725764106904,8.38,128.28,128.23,1.284]
[1725764107099,9.7191,128.28,128.23,1.284]
[1725764107703,3.8982,128.27,128.24,3.8989]
[1725764107906,9.7191,128.28,128.23,1.284]
[1725764108106,8.38,128.26,128.2,8.38]
[1725764108305,8.38,128.26,128.23,3.8991]
[1725764111512,12.2785,128.26,128.23,3.8991]
[1725764111816,8.38,128.26,128.22,3.8996]
[1725764112210,3.899,128.25,128.22,3.8996]
[1725764112406,8.38,128.26,128.22,3.8996]
[1725764113312,12.2786,128.26,128.22,3.8996]
[1725764116612,3.8988,128.25,128.22,3.8996]
[1725764117607,3.8988,128.25,128.2,8.38]
[1725764117608,12.2786,128.26,128.23,3.8994]
[1725764119414,1.3391,128.28,128.21,8.38]
[1725764119605,1.3391,128.28,128.23,8.38]
[1725764120313,5.2371,128.28,128.25,3.8987]
[1725764123910,5.2371,128.28,128.24,3.8989]
[1725764136725,1.3391,128.28,128.23,8.38]
[1725764138534,1.3391,128.28,128.26,3.8983]
[1725764141238,5.2422,128.29,128.26,3.8983]
[1725764143341,1.3445,128.29,128.27,3.8981]
[1725764143532,1.3966,128.31,128.27,3.8981]
[1725764143933,5.2938,128.31,128.27,3.8981]
[1725764145631,3.8973,128.3,128.27,3.8981]
[1725764148040,5.2937,128.31,128.27,3.8981]
[1725764150541,5.2114,128.33,128.28,8.38]
[1725764151144,9.08811327,128.33,128.29,3.8974]
[1725764154749,5.2114,128.33,128.3,3.8972]
[1725764158949,3.8967,128.32,128.29,3.8975]
[1725764162444,8.38,128.32,128.2,7.8005]
[1725764162746,1.3544,128.31,128.24,8.38]
[1725764162951,3.8974,128.3,128.26,3.8983]
[1725764164963,3.8974,128.3,128.27,3.8981]
[1725764165471,2.6756,128.35,128.29,8.38]
[1725764165650,2.6756,128.35,128.3,12.277]
[1725764166254,3.8961,128.34,128.3,12.277]
[1725764167356,3.8961,128.34,128.31,3.8969]
[1725764168954,6.5715,128.35,128.31,3.8969]
[1725764171366,7.81673615,128.34,128.3,3.8971]
[1725764172558,3.8961,128.34,128.3,3.8971]
[1725764176453,3.8961,128.34,128.31,3.8968]
[1725764179160,2.6756,128.35,128.32,3.8964]
[1725764180162,6.5715,128.35,128.32,3.8964]
[1725764180468,6.5715,128.35,128.31,12.2768]
[1725764181062,3.8961,128.34,128.31,12.2768]
[1725764182670,3.8961,128.34,128.31,3.8968]
[1725764183264,7.88425992,128.34,128.31,3.8968]
[1725764185062,6.5715,128.35,128.31,3.8968]
[1725764187976,3.8961,128.34,128.31,3.8968]
[1725764188274,7.84020664,128.34,128.31,3.8968]
[1725764190680,3.8961,128.34,128.31,3.8968]
[1725764190978,7.77238624,128.34,128.31,3.8968]
[1725764192781,3.8961,128.34,128.31,3.8968]
[1725764195776,7.85961446,128.34,128.31,3.8968]
[1725764197186,3.96351446,128.34,128.27,12.37447301]
[1725764197383,11.0556,128.35,128.27,8.38]
[1725764197886,8.38,128.33,128.27,8.38]
[1725764198086,3.99041085,128.32,128.26,3.92297497]
[1725764198389,3.8972,128.31,128.27,3.898]
[1725764198885,3.8973,128.3,128.27,3.898]
[1725764200995,3.8962,128.34,128.29,8.38]
[1725764201285,3.8962,128.34,128.26,3.83877757]
[1725764201286,3.8962,128.34,128.3,8.38]
[1725764201885,3.8962,128.34,128.3,12.277]
[1725764203079,3.8962,128.34,128.31,3.8969]
[1725764206389,7.7532092,128.34,128.3,3.897]
[1725764207590,3.8962,128.34,128.3,3.897]
[1725764209192,3.8962,128.34,128.31,3.897]
[1725764210684,7.84832848,128.34,128.31,3.897]
[1725764217309,3.8964,128.33,128.3,3.8972]
[1725764226622,3.95212848,128.34,128.29,3.8975]
[1725764226623,3.8968,128.32,128.29,3.8975]
[1725764226824,8.38,128.33,128.27,8.38]
[1725764227209,3.8971,128.31,128.28,3.8977]
[1725764229817,1.2777,128.35,128.3,8.38]
[1725764230713,5.1736,128.35,128.31,3.8968]
[1725764239126,5.1736,128.35,128.32,3.8967]
[1725764252036,5.1736,128.35,128.31,3.8968]
[1725764252037,3.8961,128.34,128.31,3.8968]
[1725764256138,3.8961,128.34,128.29,8.38]